fUSD/lending_fUSD_20240428
["ID","MTS","AMOUNT","RATE_DAILY","PERIOD"]
[13205,1714327953208,-810.95,0.00013698,2]
[13207,1714327953227,-619.56,0.00013698,2]
[13209,1714327953246,-500.0,0.00013698,2]
[13211,1714327953265,-589.63,0.00013698,2]
[13213,1714327953284,-765.61,0.00013698,2]
[13215,1714327953304,-500.0,0.00013698,2]
[13217,1714327953323,-1333.46,0.00013698,2]
[13219,1714327953342,-500.0,0.00013698,2]
[13221,1714327953367,-659.4,0.00013698,2]
[13223,1714327953385,-1958.59,0.00013698,2]
[13225,1714327953406,-1359.52,0.00013698,2]
[13227,1714327953427,-98.07772474,0.00013698,2]
[13229,1714327953452,-500.0,0.00013698,2]
[13231,1714327953470,-500.0,0.00013698,2]
[13233,1714327953489,-500.0,0.00013698,2]
[13235,1714327953508,-833.94,0.00013698,2]
[13237,1714327953529,-4648.45941549,0.00013698,2]
[13239,1714327953789,-530.69,0.00013698,2]
[13241,1714327953809,-500.0,0.00013698,2]
[13243,1714327954089,-1488.53,0.00013698,2]
[13245,1714327954110,-500.0,0.00013698,2]
[13247,1714327954129,-1243.48,0.00013698,2]
[13249,1714327954148,-4295.84,0.00013698,2]
[13251,1714327954167,-2254.53,0.00013698,2]
[13253,1714327954190,-132.17345936,0.00013698,2]
[13255,1714327954210,-500.0,0.00013698,2]
[13257,1714327954230,-1475.93,0.00013698,2]
[13259,1714327954256,-534.39,0.00013698,2]
[13261,1714327954276,-1071.44,0.00013698,2]
[13263,1714327954295,-765.18,0.00013698,2]
[13265,1714327954315,-500.0,0.00013698,2]
[13267,1714327954334,-5479.7,0.00013698,2]
[13269,1714327954354,-500.0,0.00013698,2]
[13271,1714327954380,-871.78,0.00013698,2]
[13273,1714327954399,-795.43,0.00013698,2]
[13275,1714327954419,-2595.55,0.00013698,2]
[13277,1714327954441,-3016.63753532,0.00013698,2]
[13279,1714327954465,-522.56618823,0.00013698,2]
[13281,1714327954487,-254.27564093,0.00013698,2]
[13283,1714327954508,-500.0,0.00013698,2]
[13285,1714327973909,-218.88,5.664e-05,2]
[13287,1714327978928,-258.45,5.663e-05,2]
[13289,1714327986425,-258.37937648,5.66e-05,2]
[13339,1714329032082,-404.95082115,5.583e-05,2]
[13341,1714329032101,-4414.36043817,5.583e-05,2]
[13343,1714329032120,-1632.0,5.584e-05,2]
[13345,1714329032139,-21.87029888,5.585e-05,2]
[13347,1714329032195,-258.37937648,5.585e-05,2]
[13349,1714329032288,-7085.96219637,5.585e-05,2]
[13351,1714329032307,-255.55629231,5.586e-05,2]
[13353,1714329032325,-165.04076287,5.587e-05,2]
[13355,1714329032345,-1294.66870837,5.587e-05,2]
[13357,1714329032364,-4750.67914453,5.587e-05,2]
[13359,1714329032387,-3261.9,5.587e-05,2]
[13379,1714329038071,-305.343996,5.587e-05,2]
[13381,1714329038094,-3390.000005,5.587e-05,2]
[13383,1714329038233,-15999.56543396,5.587e-05,2]
[13385,1714329038254,-13679.38435645,5.62e-05,2]
[13387,1714329038273,-19401.31353854,5.635e-05,2]
[13389,1714329038292,-300.0,5.66e-05,2]
[13391,1714329038311,-893.85221519,5.664e-05,2]
[13393,1714329038330,-766.81415628,5.724e-05,2]
[13395,1714329038349,-973.94728743,5.724e-05,2]
[13397,1714329038367,-213.82284168,5.725e-05,2]
[13399,1714329038386,-168.74926631,5.725e-05,2]
[13401,1714329038406,-159.69,6.292e-05,2]
[13403,1714329038425,-159.69,6.423e-05,2]
[13405,1714329038443,-159.69,6.554e-05,2]
[13407,1714329038453,-250.0,6.6e-05,2]
[13419,1714329038519,-168.36,7.112e-05,2]
[13421,1714329038539,-168.36,7.122e-05,2]
[13423,1714329038558,-168.36,7.132e-05,2]
[13425,1714329038577,-168.36,7.143e-05,2]
[13427,1714329038595,-1852.17212836,7.556e-05,2]
[13429,1714329038681,-128900.00000003,7.824e-05,2]
[13431,1714329038795,-229234.72136125,7.824e-05,2]
[13433,1714329038815,-1000.0,8.219e-05,2]
[13435,1714329038835,-957.04,8.219e-05,2]
[13437,1714329038854,-1500.0,8.219e-05,2]
[13439,1714329039197,-181.9451404,8.981e-05,2]
[13441,1714329039217,-212.36947955,9.468e-05,2]
[13443,1714329039237,-214.64023587,9.487e-05,2]
[13445,1714329039256,-1672.4,9.506e-05,2]
[13447,1714329039277,-155.78,9.67e-05,2]
[13449,1714329039299,-1794.53,9.67e-05,2]
[13451,1714329039318,-279.05,9.67e-05,2]
[13453,1714329039336,-267.65,9.67e-05,2]
[13455,1714329039355,-150.99,9.67e-05,2]
[13457,1714329039374,-400.0,9.868e-05,2]
[13459,1714329039393,-300.0,9.9e-05,3]
[13461,1714329039412,-317.50862952,9.979e-05,2]
[13463,1714329039431,-748.7247,9.981e-05,2]
[13465,1714329039450,-155.66076626,9.996e-05,2]
[13467,1714329039469,-159.74542163,9.996e-05,2]
[13469,1714329039487,-155.90926844,9.997e-05,2]
[13471,1714329039506,-817.71230648,9.999e-05,2]
[13473,1714329039525,-3167.46227607,0.0001,2]
[13475,1714329039544,-324.01808978,0.0001,2]
[13477,1714329039563,-700.0,0.0001,3]
[13479,1714329039582,-945.6186,0.00010067,2]
[13481,1714329039600,-3500.0662,0.00010067,2]
[13483,1714329039618,-224.76491088,0.00010096,2]
[13485,1714329039637,-499.7273274,0.00010165,2]
[13487,1714329039661,-5306.0554,0.00010167,2]
[13489,1714329039679,-468.7988,0.00010196,2]
[13491,1714329039698,-1493.2675,0.00010196,2]
[13493,1714329039719,-40064.9477,0.00010196,2]
[13495,1714329039742,-17587.2054,0.00010196,2]
[13497,1714329039762,-808.0,0.00010267,2]
[13499,1714329039780,-1860.0,0.00010267,2]
[13501,1714329039799,-610.0,0.00010267,2]
[13503,1714329039818,-3131.0,0.00010267,2]
[13505,1714329039836,-1475.0,0.00010267,2]
[13507,1714329039854,-151.043,0.00010267,2]
[13509,1714329039873,-1642.0,0.00010267,2]
[13511,1714329039892,-1139.0,0.00010267,2]
[13512,1714329039903,-5734.0,0.00010267,2]
[13513,1714329039913,-2297.0,0.00010267,2]
[13515,1714329039933,-1395.0,0.00010267,2]
[13516,1714329039943,-973.603,0.00010267,2]
[13517,1714329039954,-2291.0,0.00010267,2]
[13519,1714329039984,-37726.0,0.00010267,2]
[13520,1714329040006,-1000.0,0.00010274,2]
[13521,1714329040028,-512.1768,0.00010297,2]
[13523,1714329040053,-1000.0,0.00010297,2]
[13524,1714329040063,-168.42192436,0.00010299,2]
[13525,1714329040072,-7410.0,0.00010379,2]
[13526,1714329040082,-957.04,0.00010382,2]
[13527,1714329040091,-1267.55277145,0.00010386,2]
[13528,1714329040101,-427.88605358,0.00010389,2]
[13529,1714329040110,-156.25472416,0.00010394,2]
[13530,1714329040120,-161.45924312,0.00010394,2]
[13531,1714329040129,-376.34397124,0.00010394,2]
[13533,1714329040147,-419.53121455,0.00010394,2]
[13534,1714329040157,-155.3549745,0.00010394,2]
[13535,1714329040166,-155.27839442,0.00010394,2]
[13536,1714329040175,-155.24294181,0.00010394,2]
[13537,1714329040185,-155.43640181,0.00010394,2]
[13539,1714329040210,-155.33384844,0.00010394,2]
[13540,1714329040220,-155.0,0.00010394,2]
[13541,1714329040229,-155.0,0.00010394,2]
[13543,1714329040250,-292.97243512,0.00010394,2]
[13544,1714329040262,-155.71166294,0.00010394,2]
[13545,1714329040271,-155.35624717,0.00010394,2]
[13547,1714329040292,-155.20047157,0.00010395,2]
[13548,1714329040302,-13880.33335057,0.00010395,2]
[13549,1714329040312,-180.7562889,0.000104,2]
[13551,1714329040333,-1873.97119165,0.0001047,2]
[13552,1714329040343,-1000.0,0.0001057,2]
[13553,1714329040352,-1852.17212835,0.00010626,2]
[13555,1714329040371,-1400.0,0.000108,3]
[13557,1714329040391,-263.13145596,0.00010858,2]
[13559,1714329040410,-10000.0,0.00010858,2]
[13561,1714329040430,-188.67152486,0.00010957,2]
[13563,1714329040449,-500.0,0.00010958,2]
[13565,1714329040468,-500.0,0.00010958,2]
[13567,1714329040487,-500.0,0.00010958,2]
[13569,1714329040506,-500.0,0.00010958,2]
[13571,1714329040526,-638.59834915,0.00010958,2]
[13573,1714329040545,-500.0,0.00010958,2]
[13575,1714329040567,-500.0,0.00010958,2]
[13577,1714329040586,-500.0,0.00010958,2]
[13579,1714329040605,-500.27861114,0.00010958,2]
[13585,1714329040644,-500.0,0.00010958,2]
[13587,1714329040668,-500.0,0.00010958,2]
[13589,1714329040687,-500.0,0.00010958,2]
[13591,1714329040706,-500.0,0.00010958,2]
[13593,1714329040725,-500.0,0.00010958,2]
[13595,1714329040745,-500.0,0.00010958,2]
[13597,1714329040764,-500.0,0.00010958,2]
[13599,1714329040782,-500.0,0.00010958,2]
[13601,1714329040801,-500.0,0.00010958,2]
[13603,1714329040824,-500.0,0.00010958,2]
[13605,1714329040843,-500.0,0.00010958,2]
[13607,1714329040862,-500.0,0.00010958,2]
[13609,1714329040881,-500.0,0.00010958,2]
[13611,1714329040900,-500.0,0.00010958,2]
[13613,1714329040919,-500.0,0.00010958,2]
[13615,1714329040938,-500.0,0.00010958,2]
[13617,1714329040956,-500.0,0.00010958,2]
[13619,1714329040975,-500.0,0.00010958,2]
[13621,1714329040994,-500.0,0.00010958,2]
[13623,1714329041012,-500.0,0.00010958,2]
[13625,1714329041031,-500.0,0.00010958,2]
[13627,1714329041050,-500.0,0.00010958,2]
[13628,1714329041060,-500.0,0.00010958,2]
[13629,1714329041070,-500.0,0.00010958,2]
[13631,1714329041089,-500.0,0.00010958,2]
[13633,1714329041108,-500.0,0.00010958,2]
[13635,1714329041127,-500.0,0.00010958,2]
[13637,1714329041146,-500.0,0.00010958,2]
[13639,1714329041164,-500.0,0.00010958,2]
[13641,1714329041183,-500.0,0.00010958,2]
[13643,1714329041202,-500.0,0.00010958,2]
[13645,1714329041221,-500.0,0.00010958,2]
[13647,1714329041240,-500.0,0.00010958,2]
[13649,1714329041258,-611.53,0.00010958,2]
[13651,1714329041277,-500.0,0.00010958,2]
[13653,1714329041295,-587.95,0.00010958,2]
[13655,1714329041315,-500.0,0.00010958,2]
[13657,1714329041334,-500.0,0.00010958,2]
[13659,1714329041354,-896.51,0.00010958,2]
[13661,1714329041372,-500.0,0.00010958,2]
[13663,1714329041392,-500.0,0.00010958,2]
[13665,1714329041412,-513.58,0.00010958,2]
[13667,1714329041433,-500.0,0.00010958,2]
[13669,1714329041451,-500.0,0.00010958,2]
[13671,1714329041471,-502.39180223,0.00010958,2]
[13673,1714329041490,-500.0,0.00010958,2]
[13675,1714329041510,-500.0,0.00010958,2]
[13677,1714329041530,-500.0,0.00010958,2]
[13679,1714329041550,-626.23,0.00010958,2]
[13681,1714329041570,-1310.66,0.00010958,2]
[13683,1714329041589,-510.15016737,0.00010958,2]
[13685,1714329041609,-500.0,0.00010958,2]
[13687,1714329041629,-500.0,0.00010958,2]
[13689,1714329041648,-1056.37,0.00010958,2]
[13691,1714329041671,-500.0,0.00010958,2]
[13693,1714329041701,-500.0,0.00010958,2]
[13695,1714329041732,-500.0,0.00010958,2]
[13697,1714329041757,-500.0,0.00010958,2]
[13699,1714329041783,-676.09,0.00010958,2]
[13701,1714329041812,-500.0,0.00010958,2]
[13703,1714329041841,-500.0,0.00010958,2]
[13705,1714329041866,-500.0,0.00010958,2]
[13707,1714329041894,-500.0,0.00010958,2]
[13709,1714329041916,-540.43,0.00010958,2]
[13711,1714329041941,-500.0,0.00010958,2]
[13713,1714329041967,-500.0,0.00010958,2]
[13715,1714329041996,-500.0,0.00010958,2]
[13717,1714329042020,-500.0,0.00010958,2]
[13719,1714329042041,-500.0,0.00010958,2]
[13721,1714329042069,-500.0,0.00010958,2]
[13723,1714329042091,-549.6,0.00010958,2]
[13725,1714329042118,-500.0,0.00010958,2]
[13727,1714329042140,-500.0,0.00010958,2]
[13729,1714329042165,-500.0,0.00010958,2]
[13731,1714329042189,-500.0,0.00010958,2]
[13733,1714329042216,-500.0,0.00010958,2]
[13735,1714329042243,-500.0,0.00010958,2]
[13737,1714329042279,-500.0,0.00010958,2]
[13739,1714329042303,-500.0,0.00010958,2]
[13741,1714329042329,-500.0,0.00010958,2]
[13743,1714329042354,-500.0,0.00010958,2]
[13745,1714329042380,-500.0,0.00010958,2]
[13747,1714329042405,-500.0,0.00010958,2]
[13749,1714329042429,-511.50844403,0.00010958,2]
[13751,1714329042455,-500.0,0.00010958,2]
[13753,1714329042482,-500.0,0.00010958,2]
[13755,1714329042506,-500.0,0.00010958,2]
[13757,1714329042529,-501.63832214,0.00010958,2]
[13759,1714329042554,-500.0,0.00010958,2]
[13761,1714329042578,-500.0,0.00010958,2]
[13763,1714329042603,-500.0,0.00010958,2]
[13765,1714329042627,-500.0,0.00010958,2]
[13767,1714329042652,-725.96,0.00010958,2]
[13769,1714329042678,-500.0,0.00010958,2]
[13771,1714329042705,-500.0,0.00010958,2]
[13773,1714329042732,-500.0,0.00010958,2]
[13775,1714329042758,-500.0,0.00010958,2]
[13777,1714329042782,-500.0,0.00010958,2]
[13779,1714329042805,-500.0,0.00010958,2]
[13781,1714329042828,-520.8812645,0.00010958,2]
[13783,1714329042852,-501.6218288,0.00010958,2]
[13785,1714329042864,-500.0,0.00010958,2]
[13787,1714329042876,-500.0,0.00010958,2]
[13789,1714329042888,-170.42238009,0.00010958,2]
[13791,1714329042899,-500.0,0.00010958,2]
[13793,1714329042911,-500.0,0.00010958,2]
[13795,1714329042922,-500.0,0.00010958,2]
[13796,1714329042934,-500.0,0.00010958,2]
[13797,1714329042946,-500.0,0.00010958,2]
[13799,1714329042969,-500.0,0.00010958,2]
[13809,1714329043039,-500.0,0.00010958,2]
[13811,1714329043063,-1178.77,0.00010958,2]
[13813,1714329043086,-500.0,0.00010958,2]
[13815,1714329043110,-500.0,0.00010958,2]
[13817,1714329043121,-500.0,0.00010958,2]
[13819,1714329043132,-707.71,0.00010958,2]
[13821,1714329043144,-832.16,0.00010958,2]
[13823,1714329043166,-605.1,0.00010958,2]
[13825,1714329043188,-500.0,0.00010958,2]
[13833,1714329043245,-500.0,0.00010958,2]
[13835,1714329043267,-500.0,0.00010958,2]
[13837,1714329043290,-585.93,0.00010958,2]
[13839,1714329043313,-500.0,0.00010958,2]
[13841,1714329043336,-1.8164265,0.00010958,2]
[13843,1714329043391,-500.0,0.00010958,2]
[13844,1714329043403,-500.0,0.00010958,2]
[13845,1714329043415,-500.0,0.00010958,2]
[13846,1714329043429,-633.99018211,0.00010958,2]
[13847,1714329043442,-500.0,0.00010958,2]
[13848,1714329043453,-1025.86,0.00010958,2]
[13849,1714329043466,-500.0,0.00010958,2]
[13850,1714329043478,-534.27,0.00010958,2]
[13851,1714329043489,-500.0,0.00010958,2]
[13852,1714329043502,-773.75,0.00010958,2]
[13853,1714329043513,-519.1850735,0.00010958,2]
[13855,1714329043537,-500.0,0.00010958,2]
[13857,1714329043560,-500.0,0.00010958,2]
[13859,1714329043583,-500.0,0.00010958,2]
[13861,1714329043607,-500.0,0.00010958,2]
[13863,1714329043630,-500.0,0.00010958,2]
[13865,1714329043654,-500.0,0.00010958,2]
[13867,1714329043681,-500.0,0.00010958,2]
[13869,1714329043706,-1217.45,0.00010958,2]
[13870,1714329043720,-500.0,0.00010958,2]
[13871,1714329043737,-500.0,0.00010958,2]
[13872,1714329043748,-500.0,0.00010958,2]
[13875,1714329043760,-532.31,0.00010958,2]
[13879,1714329043771,-500.34816245,0.00010958,2]
[13881,1714329043782,-500.0,0.00010958,2]
[13883,1714329043794,-500.0,0.00010958,2]
[13885,1714329043804,-500.0,0.00010958,2]
[13887,1714329043817,-500.0,0.00010958,2]
[13889,1714329043828,-500.0,0.00010958,2]
[13892,1714329043840,-500.0,0.00010958,2]
[13896,1714329043862,-310.60716558,0.00010958,2]
[13898,1714329043873,-500.0,0.00010958,2]
[13901,1714329043896,-500.0,0.00010958,2]
[13903,1714329043922,-500.0,0.00010958,2]
[13905,1714329043946,-500.0,0.00010958,2]
[13907,1714329043970,-500.0,0.00010958,2]
[13909,1714329043996,-500.0,0.00010958,2]
[13911,1714329044019,-500.0,0.00010958,2]
[13913,1714329044043,-500.0,0.00010958,2]
[13915,1714329044066,-500.0,0.00010958,2]
[13917,1714329044088,-500.0,0.00010958,2]
[13919,1714329044112,-500.0,0.00010958,2]
[13921,1714329044136,-500.0,0.00010958,2]
[13922,1714329044148,-1390.68,0.00010958,2]
[13923,1714329044160,-1111.61,0.00010958,2]
[13925,1714329044183,-565.83,0.00010958,2]
[13927,1714329044220,-500.0,0.00010958,2]
[13929,1714329044253,-638.1,0.00010958,2]
[13931,1714329044281,-500.0,0.00010958,2]
[13933,1714329044310,-616.2,0.00010958,2]
[13935,1714329044338,-500.0,0.00010958,2]
[13937,1714329044367,-500.0,0.00010958,2]
[13938,1714329044380,-491.99006674,0.00010958,2]
[13939,1714329044394,-500.0,0.00010958,2]
[13940,1714329044406,-500.0,0.00010958,2]
[13941,1714329044419,-500.0,0.00010958,2]
[13943,1714329044445,-500.0,0.00010958,2]
[13945,1714329044469,-500.0,0.00010958,2]
[13947,1714329044494,-500.0,0.00010958,2]
[13949,1714329044519,-500.0,0.00010958,2]
[13951,1714329044544,-500.0,0.00010958,2]
[13953,1714329044568,-1661.14,0.00010958,2]
[13955,1714329044592,-500.0,0.00010958,2]
[13957,1714329044616,-601.02,0.00010958,2]
[13959,1714329044640,-500.0,0.00010958,2]
[13960,1714329044653,-500.0,0.00010958,2]
[13961,1714329044668,-500.0,0.00010958,2]
[13962,1714329044680,-500.0,0.00010958,2]
[13963,1714329044693,-652.81,0.00010958,2]
[13964,1714329044708,-1122.8,0.00010958,2]
[13965,1714329044720,-500.0,0.00010958,2]
[13966,1714329044731,-500.0,0.00010958,2]
[13967,1714329044746,-500.0,0.00010958,2]
[13968,1714329044758,-500.0,0.00010958,2]
[13969,1714329044770,-755.72,0.00010958,2]
[13971,1714329044792,-500.0,0.00010958,2]
[13972,1714329044802,-1126.64,0.00010958,2]
[13973,1714329045289,-500.0,0.00010958,2]
[13975,1714329045334,-500.0,0.00010958,2]
[13976,1714329045354,-500.0,0.00010958,2]
[13977,1714329045365,-531.93,0.00010958,2]
[13979,1714329045384,-223.73295734,0.00010958,2]
[13981,1714329045403,-500.0,0.00010958,2]
[13983,1714329045424,-500.0,0.00010958,2]
[13985,1714329045445,-500.0,0.00010958,2]
[13987,1714329045464,-500.0,0.00010958,2]
[13989,1714329045484,-1788.12,0.00010958,2]
[13991,1714329045503,-500.0,0.00010958,2]
[13993,1714329045522,-500.0,0.00010958,2]
[13995,1714329045541,-517.88701731,0.00010958,2]
[13997,1714329045560,-705.96,0.00010958,2]
[13999,1714329045580,-500.0,0.00010958,2]
[14001,1714329045599,-500.0,0.00010958,2]
[14003,1714329045618,-406.14635408,0.00010958,2]
[14005,1714329045637,-500.0,0.00010958,2]
[14007,1714329045657,-500.0,0.00010958,2]
[14009,1714329045679,-755.04,0.00010958,2]
[14011,1714329045698,-500.0,0.00010958,2]
[14013,1714329045716,-1031.54,0.00010958,2]
[14015,1714329045737,-542.98329304,0.00010958,2]
[14016,1714329045746,-500.0,0.00010958,2]
[14017,1714329045756,-569.87,0.00010958,2]
[14018,1714329045765,-500.0,0.00010958,2]
[14019,1714329045774,-500.0,0.00010958,2]
[14020,1714329045784,-500.0,0.00010958,2]
[14021,1714329045794,-1008.22,0.00010958,2]
[14022,1714329045803,-718.07,0.00010958,2]
[14024,1714329045812,-500.0,0.00010958,2]
[14026,1714329045822,-500.0,0.00010958,2]
[14029,1714329045840,-500.0,0.00010958,2]
[14031,1714329045859,-503.48585575,0.00010958,2]
[14033,1714329045877,-500.0,0.00010958,2]
[14035,1714329045895,-500.0,0.00010958,2]
[14037,1714329045914,-500.0,0.00010958,2]
[14039,1714329045933,-500.0,0.00010958,2]
[14041,1714329045951,-500.0,0.00010958,2]
[14042,1714329045961,-500.0,0.00010958,2]
[14044,1714329045970,-1722.02,0.00010958,2]
[14045,1714329045979,-500.0,0.00010958,2]
[14046,1714329045988,-500.0,0.00010958,2]
[14047,1714329045997,-500.0,0.00010958,2]
[14049,1714329046015,-500.0,0.00010958,2]
[14051,1714329046034,-645.11,0.00010958,2]
[14053,1714329046052,-500.0,0.00010958,2]
[14055,1714329046071,-500.0,0.00010958,2]
[14057,1714329046090,-500.0,0.00010958,2]
[14059,1714329046109,-768.98,0.00010958,2]
[14061,1714329046127,-551.68291386,0.00010958,2]
[14063,1714329046148,-504.51748972,0.00010958,2]
[14065,1714329046167,-717.43,0.00010958,2]
[14067,1714329046187,-502.15698598,0.00010958,2]
[14069,1714329046206,-500.0,0.00010958,2]
[14071,1714329046225,-500.0,0.00010958,2]
[14073,1714329046244,-500.0,0.00010958,2]
[14075,1714329046263,-595.12349422,0.00010958,2]
[14077,1714329046282,-378.04888931,0.00010958,2]
[14079,1714329046301,-500.0,0.00010958,2]
[14081,1714329046320,-1449.07,0.00010958,2]
[14083,1714329046339,-500.0,0.00010958,2]
[14085,1714329046358,-500.0,0.00010958,2]
[14087,1714329046377,-500.0,0.00010958,2]
[14089,1714329046396,-500.0,0.00010958,2]
[14090,1714329046405,-794.96,0.00010958,2]
[14091,1714329046414,-573.18,0.00010958,2]
[14093,1714329046433,-734.98,0.00010958,2]
[14095,1714329046452,-500.0,0.00010958,2]
[14097,1714329046472,-500.0,0.00010958,2]
[14099,1714329046490,-500.0,0.00010958,2]
[14101,1714329046509,-552.84,0.00010958,2]
[14103,1714329046528,-500.0,0.00010958,2]
[14105,1714329046547,-500.0,0.00010958,2]
[14107,1714329046565,-500.0,0.00010958,2]
[14109,1714329046584,-1173.43,0.00010958,2]
[14111,1714329046602,-500.0,0.00010958,2]
[14113,1714329046621,-349.83471348,0.00010958,2]
[14115,1714329046639,-968.28,0.00010958,2]
[14117,1714329046659,-683.7,0.00010958,2]
[14119,1714329046679,-500.0,0.00010958,2]
[14121,1714329046699,-572.97,0.00010958,2]
[14123,1714329046717,-500.0,0.00010958,2]
[14125,1714329046738,-500.0,0.00010958,2]
[14127,1714329046756,-1722.94,0.00010958,2]
[14129,1714329046775,-779.67,0.00010958,2]
[14131,1714329046793,-555.02,0.00010958,2]
[14133,1714329046812,-500.0,0.00010958,2]
[14134,1714329046822,-500.0,0.00010958,2]
[14135,1714329046831,-500.0,0.00010958,2]
[14137,1714329046850,-500.0,0.00010958,2]
[14139,1714329046868,-236.56128803,0.00010958,2]
[14141,1714329046887,-500.0,0.00010958,2]
[14143,1714329046906,-500.0,0.00010958,2]
[14145,1714329046927,-500.0,0.00010958,2]
[14147,1714329046947,-508.41,0.00010958,2]
[14149,1714329046966,-500.0,0.00010958,2]
[14151,1714329046986,-500.0,0.00010958,2]
[14153,1714329047005,-1037.99,0.00010958,2]
[14155,1714329047023,-500.0,0.00010958,2]
[14157,1714329047042,-778.4,0.00010958,2]
[14159,1714329047062,-500.0,0.00010958,2]
[14161,1714329047084,-500.0,0.00010958,2]
[14163,1714329047103,-500.0,0.00010958,2]
[14165,1714329047124,-818.36,0.00010958,2]
[14167,1714329047143,-349.03623696,0.00010958,2]
[14169,1714329047164,-862.57,0.00010958,2]
[14170,1714329047174,-500.0,0.00010958,2]
[14171,1714329047184,-500.0,0.00010958,2]
[14173,1714329047204,-860.79,0.00010958,2]
[14175,1714329047222,-500.0,0.00010958,2]
[14177,1714329047240,-1876.31,0.00010958,2]
[14179,1714329047257,-500.0,0.00010958,2]
[14181,1714329047276,-650.14,0.00010958,2]
[14183,1714329047295,-725.3,0.00010958,2]
[14185,1714329047314,-501.83975834,0.00010958,2]
[14187,1714329047332,-500.0,0.00010958,2]
[14189,1714329047350,-503.56608947,0.00010958,2]
[14191,1714329047369,-500.0,0.00010958,2]
[14193,1714329047388,-500.0,0.00010958,2]
[14195,1714329047407,-764.8,0.00010958,2]
[14197,1714329047426,-318.2507372,0.00010958,2]
[14199,1714329047446,-500.0,0.00010958,2]
[14201,1714329047464,-500.0,0.00010958,2]
[14203,1714329047483,-500.0,0.00010958,2]
[14205,1714329047502,-500.0,0.00010958,2]
[14207,1714329047521,-500.0,0.00010958,2]
[14209,1714329047539,-500.0,0.00010958,2]
[14211,1714329047559,-500.0,0.00010958,2]
[14213,1714329047577,-500.0,0.00010958,2]
[14215,1714329047594,-500.0,0.00010958,2]
[14217,1714329047612,-528.05,0.00010958,2]
[14219,1714329047631,-500.0,0.00010958,2]
[14221,1714329047650,-658.26,0.00010958,2]
[14223,1714329047671,-500.0,0.00010958,2]
[14224,1714329047680,-500.0,0.00010958,2]